[Event "Mitropa Cup Women 2024"]
[Site "Apolda"]
[Date "2024.02.18"]
[Round "4.6"]
[White "Zimina, Olga"]
[Black "Demeter, Dorina"]
[Result "1/2-1/2"]
[ECO "A13"]
[WhiteElo "2291"]
[BlackElo "2271"]
[Annotator "TA"]
[PlyCount "43"]
[EventDate "2024.02.15"]
[EventType "team-tourn"]
[EventCountry "GER"]
[SourceTitle "playchess.com"]
[Source "ChessBase"]
[SourceQuality "1"]
[WhiteTeam "Italy"]
[BlackTeam "Hungary"]
[WhiteTeamCountry "ITA"]
[BlackTeamCountry "HUN"]
[TimeControl "40/5400+30:1800+30"]

{[%evp 14,43,0,0,0,0,0,8,14,-14,27,0,15,10,21,23,23,-8,27,0,0,0,3,-35,0,-38,0,-42,0,-42,0,-41]} 1. Nf3 {[%emt 0:00:13]} d5 {[%emt 0:00:41]} 2. b3 {[%emt 0:00:06]} Nf6 {[%emt 0:00:55]} 3. Bb2 {[%emt 0:00:11]} e6 {[%emt 0:01:12]} 4. c4 {[%emt 0:00:11]} c5 {[%emt 0:02:36]} 5. e3 {[%emt 0:00:21]} Nc6 {[%emt 0:01:41]} 6. cxd5 {[%emt 0:00:28]} exd5 {[%emt 0:00:45]} 7. Bb5 {[%emt 0:00:06]} Bd6 {[%emt 0:01:46]} 8. O-O {[%emt 0:00:45]} O-O {[%emt 0:00:31]} 9. d4 {[%emt 0:00:48]} cxd4 {[%emt 0:01:25]} 10. Nxd4 {[%emt 0:06:24]} Bc7 {[%emt 0:00:18]} 11. Nd2 {[%emt 0:10:40]} ({Reject} 11. Nxc6 bxc6 12. Be2 (12. Bxc6 $2 {is the wrong capture.} Qd6 $19) 12... Qd6 $17) 11... Qd6 {[%emt 0:10:17]} 12. N4f3 {[%emt 0:05:09]} Bg4 {[%emt 0:07:19]} 13. h3 {[%emt 0:05:15]} Bh5 {[%emt 0:03:03]} 14. Rc1 {[%emt 0:02:47]} Rfe8 {[%emt 0:07:21]} 15. Re1 {[%emt 0:06:57]} Rad8 {[%emt 0:14:44]} 16. a3 {[%emt 0:10:22]} Ne4 {[%emt 0:07:14]} 17. Nxe4 {[%emt 0:00:48]} Rxe4 {[%emt 0:00:34]} 18. Bd3 {[%emt 0:03:45]} Ree8 {[%emt 0:02:21] [#] ...Bxf3 would now be deadly.} (18... Bxf3 $5 19. Qxf3 Qh2+ 20. Kf1 Re6 $15) 19. Bb5 {[%emt 0:06:16]} Re4 {[%emt 0:08:11][%cal Od5d4]} 20. Bd3 {[%emt 0:05:50]} Ree8 {[%emt 0:00:24] Threatens to win with ...Bxf3.} 21. Bb5 {[%emt 0:00:17]} Re4 {[%emt 0:03:16][%cal Od5d4]} 22. Bd3 {A rather calm draw.   Weighted Error Value: White=0.15 (very precise) /Black=0.22 (precise) .  Inaccurate:     	White=5     	Black=3      OK:         	White=6     	Black=2} 1/2-1/2

[Event "Mitropa Cup Women 2024"]
[Site "Apolda"]
[Date "2024.02.18"]
[Round "4.7"]
[White "Terbe, Zsuzsanna"]
[Black "Gueci, Tea"]
[Result "0-1"]
[ECO "D36"]
[WhiteElo "2170"]
[BlackElo "2193"]
[Annotator "RC"]
[PlyCount "54"]
[EventDate "2024.02.15"]
[EventType "team-tourn"]
[EventCountry "GER"]
[SourceTitle "playchess.com"]
[Source "ChessBase"]
[SourceQuality "1"]
[WhiteTeam "Hungary"]
[BlackTeam "Italy"]
[WhiteTeamCountry "HUN"]
[BlackTeamCountry "ITA"]
[TimeControl "40/5400+30:1800+30"]

1. d4 {[%emt 0:00:04]} d5 {[%emt 0:00:10]} 2. c4 {[%emt 0:00:10]} e6 {[%emt 0:00:03]} 3. Nc3 {[%emt 0:00:10]} Nf6 {[%emt 0:00:22]} 4. cxd5 {[%emt 0:00:18]} exd5 {[%emt 0:00:04]} 5. Bg5 {[%emt 0:00:09]} c6 {[%emt 0:00:09]} 6. e3 {[%emt 0:00:06]} h6 {[%emt 0:00:03]} 7. Bh4 {[%emt 0:00:11]} Be7 {[%emt 0:00:12]} 8. Bd3 {[%emt 0:00:20]} O-O {[%emt 0:00:09]} 9. Qc2 {[%emt 0:00:26]} Re8 {[%emt 0:00:11]} 10. Nf3 {[%emt 0:01:32]} Ne4 {[%emt 0:00:11]} 11. Bxe4 {[%emt 0:02:44]} Bxh4 {[%emt 0:02:05]} 12. Bh7+ {[%emt 0:00:25]} Kh8 {[%emt 0:00:24]} 13. Nxh4 {[%emt 0:00:07]} Qxh4 {[%emt 0:01:03]} 14. Bf5 {[%emt 0:07:40]} Rxe3+ {[%emt 0:16:28]} 15. Kf1 {[%emt 0:03:11]} Re8 {[%emt 0:02:06]} 16. Bxc8 {[%emt 0:03:17]} Rxc8 {[%emt 0:00:25]} 17. Nxd5 {[%emt 0:01:20]} Na6 {[%emt 0:06:05]} 18. Ne3 {[%emt 0:01:45]} Qxd4 {[%emt 0:04:19]} 19. Ke2 {[%emt 0:14:32]} Re8 {[%emt 0:05:21]} 20. Rhd1 {[%emt 0:05:03]} Qh4 {[%emt 0:01:52]} 21. h3 {[%emt 0:17:21]} Nb4 {[%emt 0:03:10]} 22. Qb3 {[%emt 0:01:47]} Nd5 {[%emt 0:05:31]} 23. Kf1 {[%emt 0:01:39]} Nxe3+ {[%emt 0:10:54]} 24. fxe3 {[%emt 0:00:27]} Re7 {[%emt 0:00:07]} 25. Rd4 {[%emt 0:06:01]} Qg3 {[%emt 0:07:09]} 26. Re1 {[%emt 0:02:35]} Rae8 {[%emt 0:02:02]} 27. Rg4 {[%emt 0:01:20]} Qxe1+ {[%emt 0:02:55]} 0-1

[Event "Mitropa Cup Women 2024"]
[Site "Apolda"]
[Date "2024.02.18"]
[Round "4.8"]
[White "Sala, Giulia"]
[Black "Karacsonyi, Kata"]
[Result "1-0"]
[ECO "B93"]
[WhiteElo "2035"]
[BlackElo "2087"]
[Annotator "NA RC"]
[PlyCount "71"]
[EventDate "2024.02.15"]
[EventType "team-tourn"]
[EventCountry "GER"]
[SourceTitle "playchess.com"]
[Source "ChessBase"]
[SourceQuality "1"]
[WhiteTeam "Italy"]
[BlackTeam "Hungary"]
[WhiteTeamCountry "ITA"]
[BlackTeamCountry "HUN"]
[TimeControl "40/5400+30:1800+30"]

1. e4 {[%emt 0:00:05]} c5 {[%emt 0:00:08]} 2. Nf3 {[%emt 0:01:44]} d6 {[%emt 0:00:09]} 3. d4 {[%emt 0:00:30]} cxd4 {[%emt 0:00:08]} 4. Nxd4 {[%emt 0:00:05]} Nf6 {[%emt 0:00:10]} 5. Nc3 {[%emt 0:00:06]} a6 {[%emt 0:00:23]} 6. f4 {[%emt 0:01:44]} e5 {[%emt 0:00:18]} 7. Nf3 {[%emt 0:00:05]} Nbd7 {[%emt 0:00:21]} 8. a4 {[%emt 0:00:10]} Be7 {[%emt 0:00:38]} 9. Bd3 {[%emt 0:00:08]} O-O {[%emt 0:00:22]} 10. O-O {[%emt 0:00:10]} exf4 {[%emt 0:00:25]} 11. Kh1 {[%emt 0:01:18]} Nc5 {[%emt 0:03:42]} 12. Bxf4 {[%emt 0:02:51]} Bg4 {[%emt 0:02:56]} 13. Qe1 {[%emt 0:04:42]} Nxd3 {[%emt 0:14:37]} 14. cxd3 {[%emt 0:00:10]} Re8 {[%emt 0:11:21]} 15. Qg3 {[%emt 0:04:45]} Qd7 {[%emt 0:07:27]} 16. Bg5 {[%emt 0:12:38]} h6 {[%emt 0:11:38]} 17. Bxf6 {[%emt 0:00:53]} Bxf6 {[%emt 0:00:17]} 18. Nd5 {[%emt 0:01:12]} Bd8 {[%emt 0:02:07]} 19. h3 {[%emt 0:17:15]} Be6 {[%emt 0:01:03]} 20. Nd4 {[%emt 0:00:54]} Bxd5 {[%emt 0:28:29]} 21. Nf5 {[%emt 0:00:57]} Bg5 {[%emt 0:01:51]} 22. h4 {[%emt 0:06:35]} Bf6 {[%emt 0:00:59]} 23. exd5 {[%emt 0:04:28]} Kh7 {[%emt 0:02:59]} 24. d4 {[%emt 0:03:00]} Rad8 {[%emt 0:02:55]} 25. Rf2 {[%emt 0:02:42]} Re2 {[%emt 0:03:11]} 26. Rf4 {[%emt 0:07:52]} Rde8 {[%emt 0:01:16]} 27. Raf1 {[%emt 0:00:14]} R8e7 {[%emt 0:02:59]} 28. Nxe7 {[%emt 0:03:57]} Qxe7 {[%emt 0:00:36]} 29. Qd3+ {[%emt 0:00:54]} Kg8 {[%emt 0:00:02]} 30. Rc1 {[%emt 0:06:12]} Re1+ {[%emt 0:00:16]} 31. Rxe1 {[%emt 0:00:35]} Qxe1+ {[%emt 0:00:02]} 32. Qf1 {[%emt 0:00:14]} Qe3 {[%emt 0:02:12]} 33. Qf3 {[%emt 0:02:51]} Qc1+ {[%emt 0:00:30]} 34. Kh2 {[%emt 0:00:02]} Qxb2 {[%emt 0:00:24]} 35. Re4 {[%emt 0:00:22]} Bxd4 {[%emt 0:00:35]} 36. Re8+ {[%emt 0:00:25]} 1-0

[Event "Mitropa Cup Women 2024"]
[Site "Apolda"]
[Date "2024.02.18"]
[Round "4.9"]
[White "Polterauer, Chiara"]
[Black "Novosadova, Kristyna"]
[Result "1-0"]
[ECO "B33"]
[WhiteElo "2189"]
[BlackElo "2188"]
[Annotator "RC"]
[PlyCount "95"]
[EventDate "2024.02.15"]
[EventType "team-tourn"]
[EventCountry "GER"]
[SourceTitle "playchess.com"]
[Source "ChessBase"]
[SourceQuality "1"]
[WhiteTeam "Austria"]
[BlackTeam "Czech Republic"]
[WhiteTeamCountry "AUT"]
[BlackTeamCountry "CZE"]
[TimeControl "40/5400+30:1800+30"]

1. e4 {[%emt 0:00:03]} c5 {[%emt 0:00:08]} 2. Nf3 {[%emt 0:00:05]} Nc6 {[%emt 0:00:06]} 3. d4 {[%emt 0:00:07]} cxd4 {[%emt 0:00:05]} 4. Nxd4 {[%emt 0:00:04]} Nf6 {[%emt 0:00:09]} 5. Nc3 {[%emt 0:00:13]} e5 {[%emt 0:00:12]} 6. Ndb5 {[%emt 0:00:19]} d6 {[%emt 0:00:10]} 7. Bg5 {[%emt 0:00:28]} a6 {[%emt 0:00:24]} 8. Na3 {[%emt 0:00:05]} b5 {[%emt 0:00:09]} 9. Nd5 {[%emt 0:00:20]} Be7 {[%emt 0:00:08]} 10. Bxf6 {[%emt 0:00:21]} Bxf6 {[%emt 0:00:06]} 11. c3 {[%emt 0:00:07]} Bg5 {[%emt 0:00:44]} 12. Nc2 {[%emt 0:00:57]} Ne7 {[%emt 0:02:12]} 13. Nxe7 {[%emt 0:04:48]} Qxe7 {[%emt 0:00:36]} 14. a4 {[%emt 0:01:49]} bxa4 {[%emt 0:00:17]} 15. Rxa4 {[%emt 0:00:31]} O-O {[%emt 0:00:55]} 16. Bc4 {[%emt 0:06:35]} Qb7 {[%emt 0:08:52]} 17. O-O {[%emt 0:12:54]} Qxb2 {[%emt 0:01:09]} 18. Qd3 {[%emt 0:00:32]} Qb6 {[%emt 0:17:01]} 19. Nb4 {[%emt 0:14:11]} a5 {[%emt 0:01:32]} 20. Nd5 {[%emt 0:01:27]} Qc5 {[%emt 0:01:53]} 21. Rb1 {[%emt 0:02:45]} Bd7 {[%emt 0:00:34]} 22. Bb5 {[%emt 0:00:41]} Be6 {[%emt 0:00:15]} 23. Rc4 {[%emt 0:09:11]} Qa7 {[%emt 0:15:14]} 24. Rc7 {[%emt 0:02:59]} Qb8 {[%emt 0:00:06]} 25. Bd7 {[%emt 0:02:50]} Bxd5 {[%emt 0:25:38]} 26. Rxb8 {[%emt 0:00:56]} Rfxb8 {[%emt 0:00:06]} 27. exd5 {[%emt 0:01:09]} a4 {[%emt 0:00:06]} 28. Bc6 {[%emt 0:10:32]} Bd8 {[%emt 0:05:41]} 29. Rd7 {[%emt 0:09:37]} Ra5 {[%emt 0:00:11]} 30. Bxa4 {[%emt 0:02:19]} Rxa4 {[%emt 0:00:05]} 31. g3 {[%emt 0:00:13]} e4 {[%emt 0:04:09]} 32. Qe3 {[%emt 0:01:25]} h6 {[%emt 0:03:53]} 33. Qf4 {[%emt 0:08:10]} Bf6 {[%emt 0:01:03]} 34. Qxd6 {[%emt 0:00:17]} Rb1+ {[%emt 0:06:42]} 35. Kg2 {[%emt 0:00:08]} e3 {[%emt 0:00:14]} 36. fxe3 {[%emt 0:02:35]} Ra2+ {[%emt 0:06:28]} 37. Kf3 {[%emt 0:00:15]} Rf1+ {[%emt 0:00:22]} 38. Ke4 {[%emt 0:00:34]} Bxc3 {[%emt 0:01:12]} 39. Qb8+ {[%emt 0:03:01]} Kh7 {[%emt 0:00:04]} 40. Qb3 {[%emt 0:00:46]} f5+ {[%emt 0:00:40]} 41. Kd3 {[%emt 0:30:15]} Rfa1 {[%emt 0:30:51]} 42. Qxc3 {[%emt 0:03:22]} Ra3 {[%emt 0:00:04]} 43. Rxg7+ {[%emt 0:00:36]} Kh8 {[%emt 0:00:07]} 44. Rf7+ {[%emt 0:00:44]} Rxc3+ {[%emt 0:00:00]} 45. Kxc3 {[%emt 0:00:00]} Rd1 {[%emt 0:00:00]} 46. Rxf5 {[%emt 0:00:00]} Kg7 {[%emt 0:00:00]} 47. Kc2 {[%emt 0:00:00]} Ra1 {[%emt 0:00:00]} 48. d6 {[%emt 0:00:00]} 1-0

[Event "Mitropa Cup Women 2024"]
[Site "Apolda"]
[Date "2024.02.18"]
[Round "4.10"]
[White "Koubova, Anna Marie"]
[Black "Hapala, Elisabeth"]
[Result "1/2-1/2"]
[ECO "E20"]
[WhiteElo "2100"]
[BlackElo "2001"]
[Annotator "NA RC"]
[PlyCount "149"]
[EventDate "2024.02.15"]
[EventType "team-tourn"]
[EventCountry "GER"]
[SourceTitle "playchess.com"]
[Source "ChessBase"]
[SourceQuality "1"]
[WhiteTeam "Czech Republic"]
[BlackTeam "Austria"]
[WhiteTeamCountry "CZE"]
[BlackTeamCountry "AUT"]
[TimeControl "40/5400+30:1800+30"]

1. d4 {[%emt 0:00:09]} Nf6 {[%emt 0:00:05]} 2. c4 {[%emt 0:00:12]} e6 {[%emt 0:00:03]} 3. Nc3 {[%emt 0:00:13]} Bb4 {[%emt 0:00:04]} 4. f3 {[%emt 0:00:14]} d5 {[%emt 0:04:21]} 5. a3 {[%emt 0:00:46]} Be7 {[%emt 0:00:12]} 6. e4 {[%emt 0:00:52]} dxe4 {[%emt 0:00:11]} 7. fxe4 {[%emt 0:00:10]} c5 {[%emt 0:00:17]} 8. d5 {[%emt 0:00:17]} exd5 {[%emt 0:00:08]} 9. exd5 {[%emt 0:00:15]} O-O {[%emt 0:01:07]} 10. Be2 {[%emt 0:00:32]} Bf5 {[%emt 0:05:04]} 11. Nf3 {[%emt 0:00:35]} a6 {[%emt 0:04:49]} 12. O-O {[%emt 0:01:35]} Bg6 {[%emt 0:00:31]} 13. Nh4 {[%emt 0:15:42]} Bd6 {[%emt 0:01:08]} 14. Bg5 {[%emt 0:09:05]} Nbd7 {[%emt 0:02:46]} 15. Nf5 {[%emt 0:02:46]} Be5 {[%emt 0:14:57]} 16. Kh1 {[%emt 0:23:35]} Bxf5 {[%emt 0:04:58]} 17. Rxf5 {[%emt 0:01:13]} Qc7 {[%emt 0:00:52]} 18. Bd3 {[%emt 0:01:52]} g6 {[%emt 0:29:56]} 19. Rf3 {[%emt 0:03:03]} Ng4 {[%emt 0:04:02]} 20. g3 {[%emt 0:21:01]} f6 {[%emt 0:09:49]} 21. Bf4 {[%emt 0:01:20]} Rae8 {[%emt 0:00:38]} 22. Qd2 {[%emt 0:04:16]} f5 {[%emt 0:04:36]} 23. Bf1 {[%emt 0:00:39]} Bxf4 {[%emt 0:01:09]} 24. Qxf4 {[%emt 0:02:06]} Qxf4 {[%emt 0:02:15]} 25. gxf4 {[%emt 0:00:28]} Ngf6 {[%emt 0:04:59]} 26. b4 {[%emt 0:04:31]} Ne4 {[%emt 0:00:56]} 27. Rd1 {[%emt 0:03:41]} Nxc3 {[%emt 0:02:25]} 28. Rxc3 {[%emt 0:00:05]} Re4 {[%emt 0:00:11]} 29. bxc5 {[%emt 0:02:23]} Nxc5 {[%emt 0:00:05]} 30. Rf3 {[%emt 0:00:15]} Kf7 {[%emt 0:01:13]} 31. Kg2 {[%emt 0:00:10]} Ke7 {[%emt 0:00:31]} 32. Rh3 {[%emt 0:01:33]} Rf7 {[%emt 0:00:38]} 33. Rh4 {[%emt 0:00:46]} g5 {[%emt 0:01:06]} 34. Rh6 {[%emt 0:00:33]} Rxf4 {[%emt 0:00:23]} 35. d6+ {[%emt 0:00:34]} Kd7 {[%emt 0:00:18]} 36. Rd5 {[%emt 0:00:21]} b6 {[%emt 0:00:32]} 37. Be2 {[%emt 0:00:32]} Re4 {[%emt 0:00:24]} 38. Bh5 {[%emt 0:00:23]} Rg7 {[%emt 0:00:58]} 39. Rxf5 {[%emt 0:00:13]} Rxc4 {[%emt 0:00:41]} 40. Re5 {[%emt 0:01:00]} Rd4 {[%emt 0:00:38]} 41. Be8+ {[%emt 0:15:32]} Kd8 {[%emt 0:00:24]} 42. Bc6 {[%emt 0:00:25]} Nd7 {[%emt 0:05:27]} 43. Rhe6 {[%emt 0:09:18]} Rg8 {[%emt 0:01:08]} 44. Rf5 {[%emt 0:04:34]} Rc4 {[%emt 0:18:54]} 45. Bb7 {[%emt 0:00:58]} Nc5 {[%emt 0:01:57]} 46. Re7 {[%emt 0:00:12]} Rc2+ {[%emt 0:00:35]} 47. Kg1 {[%emt 0:00:25]} Re8 {[%emt 0:02:51]} 48. Rfe5 {[%emt 0:00:36]} Rf8 {[%emt 0:01:02]} 49. Bc6 {[%emt 0:01:50]} Rc1+ {[%emt 0:00:07]} 50. Kg2 {[%emt 0:00:06]} Rc2+ {[%emt 0:00:09]} 51. Kh3 {[%emt 0:00:42]} Rc3+ {[%emt 0:00:47]} 52. Kg4 {[%emt 0:00:32]} Rc4+ {[%emt 0:00:21]} 53. Kh5 {[%emt 0:00:44]} Ne6 {[%emt 0:01:11]} 54. R5xe6 {[%emt 0:00:20]} Rxc6 {[%emt 0:00:32]} 55. Rxh7 {[%emt 0:01:03]} Rg8 {[%emt 0:02:02]} 56. Ree7 {[%emt 0:00:42]} Rc4 {[%emt 0:00:31]} 57. Rd7+ {[%emt 0:00:22]} Kc8 {[%emt 0:00:15]} 58. Rc7+ {[%emt 0:00:33]} Rxc7 {[%emt 0:00:01]} 59. Rxc7+ {[%emt 0:00:08]} Kb8 {[%emt 0:00:26]} 60. Rc6 {[%emt 0:00:43]} Kb7 {[%emt 0:00:22]} 61. Rc7+ {[%emt 0:00:06]} Kb8 {[%emt 0:00:14]} 62. Rc6 {[%emt 0:00:53]} Kb7 {[%emt 0:01:30]} 63. Rc7+ {[%emt 0:00:47]} Kb8 {[%emt 0:00:41]} 64. Rc2 {[%emt 0:00:25]} b5 {[%emt 0:00:27]} 65. d7 {[%emt 0:00:26]} a5 {[%emt 0:00:34]} 66. Rc5 {[%emt 0:00:21]} b4 {[%emt 0:00:11]} 67. Rxa5 {[%emt 0:00:40]} bxa3 {[%emt 0:00:07]} 68. Rxa3 {[%emt 0:00:11]} Kc7 {[%emt 0:00:28]} 69. Rd3 {[%emt 0:00:43]} Kd8 {[%emt 0:00:15]} 70. h3 {[%emt 0:00:23]} Rg7 {[%emt 0:00:22]} 71. Kh6 {[%emt 0:00:48]} Rxd7 {[%emt 0:00:14]} 72. Rxd7+ {[%emt 0:00:23]} Kxd7 {[%emt 0:00:04]} 73. Kxg5 {[%emt 0:00:08]} Ke7 {[%emt 0:00:03]} 74. Kg6 {[%emt 0:00:10]} Kf8 {[%emt 0:00:04]} 75. h4 {[%emt 0:00:20]} 1/2-1/2

[Event "Mitropa Cup Women 2024"]
[Site "Apolda"]
[Date "2024.02.18"]
[Round "4.12"]
[White "Mayrhuber, Nikola"]
[Black "Lhotska, Anna"]
[Result "0-1"]
[ECO "E10"]
[WhiteElo "2009"]
[BlackElo "2053"]
[Annotator "NA"]
[PlyCount "270"]
[EventDate "2024.02.15"]
[EventType "team-tourn"]
[EventCountry "GER"]
[SourceTitle "playchess.com"]
[Source "ChessBase"]
[SourceQuality "1"]
[WhiteTeam "Austria"]
[BlackTeam "Czech Republic"]
[WhiteTeamCountry "AUT"]
[BlackTeamCountry "CZE"]
[TimeControl "40/5400+30:1800+30"]

1. d4 {[%emt 0:00:02]} Nf6 {[%emt 0:00:26]} 2. c4 {[%emt 0:00:05]} c5 {[%emt 0:00:06]} 3. d5 {[%emt 0:00:06]} e6 {[%emt 0:00:06]} 4. Nf3 {[%emt 0:00:36]} exd5 {[%emt 0:00:30]} 5. cxd5 {[%emt 0:00:04]} d6 {[%emt 0:00:07]} 6. g3 {[%emt 0:00:28]} g6 {[%emt 0:00:08]} 7. a4 {[%emt 0:00:53]} Bg7 {[%emt 0:01:01]} 8. Bg2 {[%emt 0:00:07]} O-O {[%emt 0:00:11]} 9. Nfd2 {[%emt 0:00:27]} Re8 {[%emt 0:02:43]} 10. O-O {[%emt 0:00:59]} Nbd7 {[%emt 0:04:09]} 11. Na3 {[%emt 0:04:01]} a6 {[%emt 0:04:59]} 12. Nac4 {[%emt 0:01:41]} Ne5 {[%emt 0:01:11]} 13. Nxe5 {[%emt 0:03:08]} Rxe5 {[%emt 0:00:48]} 14. Nc4 {[%emt 0:00:07]} Re7 {[%emt 0:01:31]} 15. a5 {[%emt 0:02:29]} Ng4 {[%emt 0:19:22]} 16. h3 {[%emt 0:16:46]} Ne5 {[%emt 0:00:32]} 17. Nb6 {[%emt 0:00:10]} Rb8 {[%emt 0:00:19]} 18. e4 {[%emt 0:09:39]} Nd7 {[%emt 0:04:54]} 19. Nc4 {[%emt 0:04:10]} Ne5 {[%emt 0:05:01]} 20. Ne3 {[%emt 0:08:57]} b5 {[%emt 0:02:54]} 21. axb6 {[%emt 0:01:14]} Nd7 {[%emt 0:01:11]} 22. Nc4 {[%emt 0:09:27]} Nxb6 {[%emt 0:00:43]} 23. Na5 {[%emt 0:00:04]} Bd7 {[%emt 0:01:09]} 24. Qc2 {[%emt 0:10:56]} Qc7 {[%emt 0:05:44]} 25. Bg5 {[%emt 0:01:53]} Ree8 {[%emt 0:00:41]} 26. Ra3 {[%emt 0:06:49]} Bb5 {[%emt 0:01:33]} 27. Rd1 {[%emt 0:00:49]} Nd7 {[%emt 0:10:01]} 28. b4 {[%emt 0:06:06]} c4 {[%emt 0:05:21]} 29. Be3 {[%emt 0:01:55]} Rbc8 {[%emt 0:02:28]} 30. Bd4 {[%emt 0:03:34]} Bxd4 {[%emt 0:05:59]} 31. Rxd4 {[%emt 0:00:01]} Ne5 {[%emt 0:01:04]} 32. Rc3 {[%emt 0:03:41]} Qd7 {[%emt 0:05:00]} 33. Bf1 {[%emt 0:01:36]} h5 {[%emt 0:09:31]} 34. Kh2 {[%emt 0:01:06]} Nd3 {[%emt 0:01:11]} 35. Nxc4 {[%emt 0:02:03]} Nxb4 {[%emt 0:01:00]} 36. Qb2 {[%emt 0:00:55]} Qa7 {[%emt 0:01:25]} 37. Rd2 {[%emt 0:01:01]} Qc5 {[%emt 0:01:05]} 38. Rb3 {[%emt 0:00:45]} Bxc4 {[%emt 0:01:43]} 39. Bxc4 {[%emt 0:00:04]} Rxe4 {[%emt 0:00:31]} 40. Rxb4 {[%emt 0:00:57]} Rxc4 {[%emt 0:00:22]} 41. Rb7 {[%emt 0:10:04]} h4 {[%emt 0:09:29]} 42. Qf6 {[%emt 0:04:57]} hxg3+ {[%emt 0:00:45]} 43. fxg3 {[%emt 0:01:24]} Rf8 {[%emt 0:00:20]} 44. Qf2 {[%emt 0:10:54]} Qa5 {[%emt 0:01:49]} 45. Rd7 {[%emt 0:01:25]} Rc3 {[%emt 0:08:28]} 46. Rxd6 {[%emt 0:02:18]} Rf3 {[%emt 0:01:07]} 47. Qxf3 {[%emt 0:02:09]} Qxd2+ {[%emt 0:00:05]} 48. Qg2 {[%emt 0:00:23]} Qd3 {[%emt 0:00:06]} 49. Rf6 {[%emt 0:00:54]} Re8 {[%emt 0:00:38]} 50. Rf2 {[%emt 0:00:09]} Re3 {[%emt 0:03:45]} 51. Rd2 {[%emt 0:00:05]} Qc3 {[%emt 0:00:03]} 52. Rc2 {[%emt 0:00:41]} Qe5 {[%emt 0:01:10]} 53. Rd2 {[%emt 0:01:03]} Qc3 {[%emt 0:01:55]} 54. Rc2 {[%emt 0:00:15]} Qd4 {[%emt 0:00:05]} 55. Qf2 {[%emt 0:00:52]} Qe5 {[%emt 0:01:57]} 56. Rd2 {[%emt 0:00:10]} Qc3 {[%emt 0:05:15]} 57. d6 {[%emt 0:00:02]} Rd3 {[%emt 0:00:25]} 58. Rc2 {[%emt 0:01:05]} Qe5 {[%emt 0:00:58]} 59. Rc8+ {[%emt 0:00:31]} Kg7 {[%emt 0:00:06]} 60. Rc7 {[%emt 0:00:12]} Qd5 {[%emt 0:00:15]} 61. Qb2+ {[%emt 0:00:57]} Kh7 {[%emt 0:00:57]} 62. Rc2 {[%emt 0:00:33]} Qxd6 {[%emt 0:00:12]} 63. Rg2 {[%emt 0:00:29]} Qd5 {[%emt 0:00:57]} 64. Qf6 {[%emt 0:00:26]} a5 {[%emt 0:00:52]} 65. Rf2 {[%emt 0:00:26]} Rd2 {[%emt 0:00:28]} 66. Rxd2 {[%emt 0:00:40]} Qxd2+ {[%emt 0:00:04]} 67. Kg1 {[%emt 0:00:03]} Qd5 {[%emt 0:00:14]} 68. h4 {[%emt 0:00:29]} Qf5 {[%emt 0:00:57]} 69. Qd4 {[%emt 0:00:16]} Qb1+ {[%emt 0:00:43]} 70. Kh2 {[%emt 0:00:12]} Qc2+ {[%emt 0:00:05]} 71. Kg1 {[%emt 0:00:16]} a4 {[%emt 0:00:13]} 72. Qf4 {[%emt 0:01:16]} Qd1+ {[%emt 0:00:43]} 73. Kh2 {[%emt 0:00:07]} Qb3 {[%emt 0:00:22]} 74. h5 {[%emt 0:00:24]} Qc2+ {[%emt 0:00:23]} 75. Kg1 {[%emt 0:00:17]} Qd1+ {[%emt 0:00:19]} 76. Kf2 {[%emt 0:00:18]} Qb3 {[%emt 0:00:34]} 77. hxg6+ {[%emt 0:00:13]} fxg6 {[%emt 0:00:10]} 78. Qh4+ {[%emt 0:00:21]} Kg7 {[%emt 0:00:11]} 79. Qd4+ {[%emt 0:00:07]} Kf7 {[%emt 0:00:07]} 80. Qf4+ {[%emt 0:00:41]} Kg8 {[%emt 0:00:16]} 81. Qd6 {[%emt 0:01:07]} a3 {[%emt 0:00:39]} 82. Qxg6+ {[%emt 0:00:07]} Kf8 {[%emt 0:00:04]} 83. Qd6+ {[%emt 0:00:30]} Kf7 {[%emt 0:00:04]} 84. Qd7+ {[%emt 0:00:25]} Kf8 {[%emt 0:00:39]} 85. Qd6+ {[%emt 0:00:09]} Kg7 {[%emt 0:00:04]} 86. Qe5+ {[%emt 0:00:07]} Kf7 {[%emt 0:00:04]} 87. Qf5+ {[%emt 0:00:28]} Ke7 {[%emt 0:00:05]} 88. Qc5+ {[%emt 0:00:05]} Ke6 {[%emt 0:00:06]} 89. Qc6+ {[%emt 0:00:17]} Ke5 {[%emt 0:00:06]} 90. Qc5+ {[%emt 0:00:08]} Ke4 {[%emt 0:00:09]} 91. Qe7+ {[%emt 0:02:47]} Kd3 {[%emt 0:00:07]} 92. Qe2+ {[%emt 0:00:27]} Kc3 {[%emt 0:00:07]} 93. Qe5+ {[%emt 0:00:15]} Kc2 {[%emt 0:00:08]} 94. Qe2+ {[%emt 0:00:19]} Kb1 {[%emt 0:00:17]} 95. Qe1+ {[%emt 0:00:09]} Kb2 {[%emt 0:00:53]} 96. Qe5+ {[%emt 0:00:04]} Qc3 {[%emt 0:00:18]} 97. Qb5+ {[%emt 0:00:12]} Qb3 {[%emt 0:00:58]} 98. Qe5+ {[%emt 0:00:05]} Kc1 {[%emt 0:00:50]} 99. Qf4+ {[%emt 0:02:54]} Kb1 {[%emt 0:00:10]} 100. Kg2 {[%emt 0:00:54]} a2 {[%emt 0:00:48]} 101. Qf1+ {[%emt 0:00:09]} Kb2 {[%emt 0:00:20]} 102. Qf6+ {[%emt 0:00:04]} Qc3 {[%emt 0:00:33]} 103. Qb6+ {[%emt 0:00:11]} Kc1 {[%emt 0:00:10]} 104. Qg1+ {[%emt 0:02:03]} Kc2 {[%emt 0:00:23]} 105. Kh3 {[%emt 0:00:26]} a1=Q {[%emt 0:00:08]} 106. Qf2+ {[%emt 0:00:16]} Kd3 {[%emt 0:03:49]} 107. Qf3+ {[%emt 0:00:07]} Kd4 {[%emt 0:00:08]} 108. Qf6+ {[%emt 0:00:15]} Kd5 {[%emt 0:00:11]} 109. Qf7+ {[%emt 0:00:26]} Kd6 {[%emt 0:00:23]} 110. Qf8+ {[%emt 0:00:11]} Kc7 {[%emt 0:01:00]} 111. Qf4+ {[%emt 0:01:16]} Qe5 {[%emt 0:00:37]} 112. Qc4+ {[%emt 0:00:04]} Kd6 {[%emt 0:00:32]} 113. Qb4+ {[%emt 0:00:17]} Ke6 {[%emt 0:00:35]} 114. Qc4+ {[%emt 0:00:21]} Kd7 {[%emt 0:00:34]} 115. Qf7+ {[%emt 0:00:41]} Kd6 {[%emt 0:01:06]} 116. Qf8+ {[%emt 0:00:12]} Qe7 {[%emt 0:00:43]} 117. Qb8+ {[%emt 0:00:25]} Ke6 {[%emt 0:00:11]} 118. Qg8+ {[%emt 0:01:26]} Kf6 {[%emt 0:00:31]} 119. Qh8+ {[%emt 0:00:11]} Qg7 {[%emt 0:00:04]} 120. Qh4+ {[%emt 0:01:01]} Kf7 {[%emt 0:00:19]} 121. Qc4+ {[%emt 0:00:14]} Kf8 {[%emt 0:01:26]} 122. Qc8+ {[%emt 0:00:04]} Ke7 {[%emt 0:00:07]} 123. Qc7+ {[%emt 0:00:16]} Ke6 {[%emt 0:01:13]} 124. Qc6+ {[%emt 0:00:39]} Ke5 {[%emt 0:00:09]} 125. Qc5+ {[%emt 0:00:21]} Ke4 {[%emt 0:00:06]} 126. Qc6+ {[%emt 0:01:21]} Ke3 {[%emt 0:00:11]} 127. Qc5+ {[%emt 0:00:54]} Qgd4 {[%emt 0:01:16]} 128. Qg5+ {[%emt 0:00:12]} Ke4 {[%emt 0:00:06]} 129. Qg4+ {[%emt 0:00:09]} Ke5 {[%emt 0:00:14]} 130. Qg5+ {[%emt 0:00:17]} Ke6 {[%emt 0:00:07]} 131. Qg8+ {[%emt 0:00:35]} Ke7 {[%emt 0:00:05]} 132. Qg5+ {[%emt 0:00:30]} Qf6 {[%emt 0:00:06]} 133. Qc5+ {[%emt 0:00:04]} Kf7 {[%emt 0:00:06]} 134. Qc7+ {[%emt 0:00:26]} Kg6 {[%emt 0:00:23]} 135. Qc2+ {[%emt 0:01:57]} Qf5+ {[%emt 0:00:05]} 0-1